Cogmind - Beta 14 @@@ ROGUE MODE // 2024.12.18 @ 07:27:40 Player: The Gourd Result: Destroyed by QT-J07(R) with Subdweller Beam Cannon Performance ------------- Evolutions (0) 0 Regions Visited (2) 400 Robots Destroyed (25) 125 Value Destroyed (518) 518 Prototype IDs (0) 0 Alien Tech Used (0) 0 Bonus (0) 0 TOTAL SCORE: 1043 Bonus ------- None Cogmind --------- Core Integrity 0/250 Matter 265/300 Energy 98/100 System Corruption 4% Temperature Cool (9) Movement Core (50) Location -10/Subcaves Parts ------- > --- POWER (1) -------- (None) > --- PROPULSION (2) --- (None) > --- UTILITY (2) ------ (None) > --- WEAPON (2) ------- (None) > --- INVENTORY (5) ---- Subdweller Power Source Wheel Barrage Gun Battle Cannon Hammer Peak State ------------ > --- POWER ------------ Ion Engine > --- PROPULSION ------- Light Treads Wheel > --- UTILITY ---------- Small Storage Unit Improved Terrain Scanner > --- WEAPON ----------- Autogun Autogun > --- INVENTORY -------- Ion Engine Light Ion Engine Light Treads Wheel Huge Storage Unit Autogun Autogun Hammer [Rating: 12] Favorites ----------- Power Ion Engine Engine Ion Engine Propulsion Light Treads Treads Light Treads Wheel Wheel Utility Scrap Shield Device Improved Terrain Scanner Storage Large Storage Unit Protection Scrap Shield Weapon Battle Cannon Ballistic Gun Autogun Ballistic Cannon Battle Cannon Launcher Mini Grenade Launcher Impact Weapon Hammer Build | -11 -10 -10 ------- Run | Yrd Mat Sub Slots Evolved . | . . . Power . | . . . Propulsion . | . . . Utility . | . . . Weapon . | . . . Parts Attached 34 | 7 12 15 Power 4 | 1 2 1 Engine 4 | 1 2 1 Core . | . . . Reactor . | . . . Propulsion 4 | 2 . 2 Treads 3 | 1 . 2 Leg . | . . . Wheel 1 | 1 . . Hover . | . . . Flight . | . . . Utility 6 | 2 1 3 Device 1 | 1 . . Storage 2 | 1 1 . Processor . | . . . Hackware . | . . . Protection 3 | . . 3 Artifact . | . . . Weapon 20 | 2 9 9 Energy Gun . | . . . Energy Cannon . | . . . Ballistic Gun 10 | 2 6 2 Ballistic Cannon 3 | . . 3 Launcher 5 | . 3 2 Special Weapon . | . . . Impact Weapon 2 | . . 2 Slashing Weapon . | . . . Piercing Weapon . | . . . Special Melee Weapon . | . . . Unidentified Prototypes . | . . . Parts Lost 3 | . . 3 Power . | . . . Propulsion 1 | . . 1 Utility 2 | . . 2 Weapon . | . . . Highest Loss Streak 2 | . . 2 To Critical Strikes . | . . . Average Slot Usage (%) 90 | . 100 86 Engine 13 | . 14 13 Treads 17 | . 14 19 Wheel 9 | . 14 7 Device 6 | . 14 3 Storage 6 | . 14 3 Protection 7 | . . 10 Ballistic Gun 7 | . 17 3 Ballistic Cannon 10 | . . 14 Launcher 5 | . 10 3 Impact Weapon 4 | . . 6 Peak Build Rating 12 | 9 12 12 Average Rating 11 | 5 11 11 On Entrance 7 | . 9 12 Naked Turns 2 | . . 2 Heaviest Build 32 | 14 32 32 Greatest Support 40 | 10 10 40 Greatest Overweight (x) 3 | 1 3 3 Average Overweight (x) 1 | . 1 1 Largest Inventory Capacity 15 | 8 15 15 Average Capacity 8 | 7 12 7 Most Carried 10 | 6 9 10 Average Carried 6 | 4 8 5 Final Capacity 15 | 8 15 5 Final Carried 9 | 6 9 5 Class Distribution -------------------- 83% | Mutant 16% | Derelict-Mutant Dominant Class ---------------- Mutant | -10/Materials Mutant | -10/Subcaves Resources | -11 -10 -10 ----------- Run | Yrd Mat Sub Matter Collected 974 | 322 212 440 Remotely . | . . . Salvage Created 585 | 170 218 197 Parts 42 | 9 22 11 Haulers Intercepted 1 | . 1 . Recyclers Shooed 1 | 1 . . Parts Field Recycled . | . . . Retrieved Matter . | . . . Parts Self-Destructed 8 | . . 8 Prevented . | . . . Kills | -11 -10 -10 ------- Run | Yrd Mat Sub Combat Hostiles Destroyed 16 | . 8 8 Guns 1 | . . 1 Cannons 3 | . . 3 AOE 12 | . 8 4 Classes Destroyed 8 | 2 5 1 Worker 1 | . 1 . Tunneler 4 | 3 1 . Hauler 1 | . 1 . Recycler 2 | 1 1 . Watcher 1 | . 1 . Swarmer 6 | . 6 . Grunt 4 | . 2 2 Subdweller 6 | . . 6 Best Kill Streak 6 | 3 6 4 Combat Bots Only 5 | . 5 4 Max Kills in Single Turn 4 | 1 4 2 Gunslinging . | . . . Exploded 3 | . 3 2 Melee . | . . . Uniques/NPCs Destroyed . | . . . Combat | -11 -10 -10 -------- Run | Yrd Mat Sub Hostile Shots Fired 65 | . 13 52 Missed 16 | . 2 14 Damage Taken 1524 | . 109 1415 Core 262 | . 23 239 Absorbed by Shields . | . . . Core Remaining (%) 100 | 100 . . Volleys Fired 48 | 13 12 23 Largest 2 | 2 2 2 Hottest 78 | 40 60 78 Shots Fired 93 | 26 24 43 Gun 48 | 26 18 4 Cannon 29 | . . 29 Launcher 16 | . 6 10 Special . | . . . Kinetic 77 | 26 18 33 Thermal . | . . . Explosive 16 | . 6 10 Electromagnetic . | . . . Robot Hit Streak 9 | 6 2 9 Robot Miss Streak 3 | 2 3 2 Penetration Max . | . . . Secondary Targets . | . . . Shots Hit Robots 55 | 18 7 30 Core Hits 37 | 7 15 15 Critical Kills . | . . . Critical Parts Destroyed . | . . . Critical Strikes 1 | . . 1 Blast 1 | . . 1 Melee Attacks 73 | . . 73 Impact 73 | . . 73 Slashing . | . . . Piercing . | . . . Sneak Attacks . | . . . Combat Hostiles . | . . . Follow-up Attacks . | . . . Damage Inflicted 1867 | 195 685 987 Guns 302 | 195 79 28 Cannons 410 | . . 410 Explosions 1155 | . 606 549 Melee . | . . . Ramming . | . . . Kinetic 712 | 195 79 438 Thermal . | . . . Explosive 1155 | . 606 549 Electromagnetic . | . . . Impact . | . . . Slashing . | . . . Piercing . | . . . Highest Corruption 4 | . . 4 Average Corruption 4 | . . 4 Corruption Purged . | . . . Corruption Blocked . | . . . Effects 40 | . . 40 Message Errors 9 | . . 9 Matter Fused 5 | . . 5 Heat Flow Errors 7 | . . 7 Energy Discharges 9 | . . 9 Data Loss (minor) 4 | . . 4 Data Loss (major) 2 | . . 2 Misfires 2 | . . 2 Alerts 2 | . . 2 Overload Shots . | . . . Overflow Damage 36 | . 19 17 Projectiles . | . . . Explosions 36 | . 19 17 Melee . | . . . Knockbacks 2 | . . 2 Impact . | . . . Kinetic 2 | . . 2 Secondary . | . . . Self-Inflicted Damage 145 | . 17 128 Shots 6 | . 1 5 Rammed . | . . . Targets Rammed . | . . . Kicked . | . . . Crushed . | . . . Highest Temperature 233 | . 12 233 Average Temperature 57 | . 6 92 Received Heat Transfer 114 | . . 114 Siege Activations . | . . . Robots Corrupted . | . . . Combat Hostiles . | . . . Parts Fried . | . . . Impact Corruptions . | . . . Robots Melted . | . . . Combat Hostiles . | . . . Parts Melted . | . . . Heat Transferred . | . . . Parts Sabotaged . | . . . Parts Stolen . | . . . Parts Stripped . | . . . Power Chain Reactions . | . . . Alert | -11 -10 -10 ------- Run | Yrd Mat Sub Peak Influence 312 | 20 312 . Initial 13 | . 13 . Average 111 | 7 134 . Maximum Alert Level 1 | . 1 . Low Security (%) 87 | 100 85 . Level 1 12 | . 14 . Level 2 . | . . . Level 3 . | . . . Level 4 . | . . . Level 5 . | . . . High Security . | . . . Max Security . | . . . Squads Dispatched 1 | . 1 . Investigation . | . . . Extermination . | . . . Reinforcement 1 | . 1 . Assault . | . . . Garrison . | . . . Intercept . | . . . Searches Triggered . | . . . Construction Impeded . | . . . Haulers Reinforced . | . . . Active Scanning Responses . | . . . Cargo Convoy Interrupts . | . . . Stealth | -11 -10 -10 --------- Run | Yrd Mat Sub Distress Signals . | . . . Communications Jammed . | . . . Distress Signals . | . . . Times Spotted 26 | . 10 16 Peak Tracking Total 6 | . 4 6 Tactical Retreats 2 | . . 2 Traps | -11 -10 -10 ------- Run | Yrd Mat Sub Traps Triggered 1 | . 1 . Indirectly . | . . . Trap Hack Attempts . | . . . Triggered . | . . . Disarmed . | . . . Reprogrammed . | . . . Reused . | . . . Traps Extracted . | . . . Installed . | . . . Triggered . | . . . Machines | -11 -10 -10 ---------- Run | Yrd Mat Sub Machines Disabled 2 | . 2 . Max in Single Turn 1 | . 1 . Machines Repaired . | . . . Machines Dismantled . | . . . Machines Sabotaged . | . . . Overloaded Fab Kills . | . . . Hacking | -11 -10 -10 --------- Run | Yrd Mat Sub Machines Accessed 1 | . 1 . Terminals 1 | . 1 . Fabricators . | . . . Repair Stations . | . . . Recycling Units . | . . . Scanalyzers . | . . . Garrison Access . | . . . Total Hacks 3 | . 3 . Successful . | . . . Failed 3 | . 3 . Catastrophic 1 | . 1 . Database Lockouts . | . . . Manual 3 | . 3 . Terminals 3 | . 3 . Fabricators . | . . . Repair Stations . | . . . Recycling Units . | . . . Scanalyzers . | . . . Garrison Access . | . . . Terminal Hacks . | . . . Fabricator Hacks . | . . . Repair Station Hacks . | . . . Recycling Unit Hacks . | . . . Scanalyzer . | . . . Garrison Access Hacks . | . . . Unauthorized Hacks . | . . . Terminals . | . . . Fabricators . | . . . Repair Stations . | . . . Recycling Units . | . . . Scanalyzers . | . . . Garrison Access . | . . . Data Cores Recovered . | . . . Used . | . . . Hacking Detections 1 | . 1 . Full Trace Events . | . . . Feedback Events . | . . . Feedback Blocked . | . . . Robot Schematics Acquired . | . . . Robots Built . | . . . Authchips . | . . . Time . | . . . Total Robot Build Rating . | . . . Part Schematics Acquired . | . . . Parts Built . | . . . Authchips . | . . . Time . | . . . Total Part Build Rating . | . . . Parts Repaired . | . . . Time . | . . . Parts Recycled . | . . . Recycled Matter . | . . . Retrieved Matter . | . . . Retrieved Components . | . . . Parts Scanalyzed . | . . . Part Schematics Acquired . | . . . Parts Damaged . | . . . Bothacking | -11 -10 -10 ------------ Run | Yrd Mat Sub Used RIF Installer . | . . . Robots Hacked . | . . . Non-combat . | . . . Combat . | . . . Robot Hacks Applied . | . . . Relay Couplers Released . | . . . Fabnet Peak Effective % . | . . . Robots Rewired . | . . . Allies Hacked . | . . . Hacks Repelled . | . . . Allies | -11 -10 -10 -------- Run | Yrd Mat Sub Total Allies . | . . . Largest Group . | . . . Highest-Rated Group . | . . . Highest-Rated Ally . | . . . Total Orders . | . . . Ally Attacks . | . . . Total Damage . | . . . Kills . | . . . Allies Corrupted . | . . . Allies Melted . | . . . Intel | -11 -10 -10 ------- Run | Yrd Mat Sub Robot Analysis Total . | . . . Derelict Logs Recovered 1 | . . 1 Drone Launches . | . . . Drone Recoveries . | . . . Exploration | -11 -10 -10 ------------- Run | Yrd Mat Sub Turns Passed 2669 | 161 735 1773 Spaces Moved 1101 | 113 302 686 Core 6 | 1 . 5 Treads 345 | . . 345 Legs . | . . . Wheels 750 | 112 302 336 Hover . | . . . Flight . | . . . Fastest Speed 50 | 50 80 50 Average Speed 131 | 92 99 152 Slowest Speed 260 | 95 125 260 Overloaded Moves . | . . . Propulsion Burnouts . | . . . Robots Hopped . | . . . Cave-ins Triggered 1 | . . 1 Exploration Rate (%) 21 | 6 35 23 Regions Visited 2 Branch Regions 1 Pre-discovered Areas 1 | . . 1 Known Exits Taken . | . . . Unknown Exits Taken 2 | 1 1 . Scrap Searched 11 | . . 11 Spaces Dug . | . . . Terrain Destroyed 83 | . 35 48 Melee . | . . . Projectile 2 | . . 2 AOE 81 | . 35 46 Terrain Rammed . | . . . Walls Destroyed . | . . . Machines Disabled . | . . . Actions | -11 -10 -10 --------- Run | Yrd Mat Sub Total 2105 | 142 715 1248 Wait 805 | 4 377 424 Move 1099 | 112 301 686 Hop . | . . . Pick Up 18 | 6 6 6 Fast Attach 16 | 7 5 4 Attach 3 | . . 3 Detach 2 | . . 2 Swap 15 | . 7 8 Drop 20 | . 7 13 Fire 48 | 13 12 23 Melee 73 | . . 73 Ram . | . . . Kick . | . . . Crush . | . . . Escape Stasis . | . . . Rewire . | . . . Trap . | . . . Miscellaneous 6 | . . 6 Route ------- -11/Scrapyard -10/Materials (discovered 2 exits: [*Min] / [*Sub]) -10/Subcaves (discovered 3 exits: [*Mat x2] / [*Rec]) History --------- Turn | Location | Event 18 | -11/Scrapyard | Discovered new exit (range 15) 162 | -11/Scrapyard | Entered Materials 209 | -10/Materials | Discovered new exit (range 13) 302 | -10/Materials | Build established: Mutant 881 | -10/Materials | Discovered new exit (range 5) 897 | -10/Materials | Entered Subcaves 898 | -10/Subcaves | Ambushed by Subdwellers from Twisted Machinery 934 | -10/Subcaves | Crushed by falling debris 934 | -10/Subcaves | Core integrity fell below 50% 1265 | -10/Subcaves | Discovered new exit (range 11) 1285 | -10/Subcaves | Learned location of Storage (-7) 1289 | -10/Subcaves | Disturbed a concealed Subdweller 1551 | -10/Subcaves | Shifting Twisted Machinery released Spk. Treads 1556 | -10/Subcaves | Discovered new exit (range 13) 1580 | -10/Subcaves | Shifting Twisted Machinery released Shrapnel Trap 1589 | -10/Subcaves | A swath of the cavern ceiling suddenly collapsed 1794 | -10/Subcaves | A swath of the cavern ceiling suddenly collapsed 2123 | -10/Subcaves | Build established: Derelict-Mutant 2222 | -10/Subcaves | Disturbed a concealed Subdweller 2412 | -10/Subcaves | Discovered new exit (range 13) 2433 | -10/Subcaves | Shifting Twisted Machinery released Scrap Shield 2437 | -10/Subcaves | Shifting Twisted Machinery released Sub. Laser 2507 | -10/Subcaves | A Subdweller sparked back to life 2564 | -10/Subcaves | Build established: Mutant 2652 | -10/Subcaves | Core integrity fell below 20% 2668 | -10/Subcaves | Released all parts (5) 2670 | -10/Subcaves | Destroyed by QT-J07(R) with Subdweller Beam Cannon Last Messages --------------- 02412_ System corrupted: Energy discharge (-87). 02412_ EXIT=FOUND Scrap Shield falls loose from the Twisted Machinery. Sub. Laser falls loose from the Twisted Machinery. 02438_ &7XPRG|FLD3BWK 02453_ A#NPHJIMJC44XXNO6JF MRVHM 46I >Q9OJBMJV 02485_ System corrupted: Energy discharge (-55). 02507_ FH-9J0(R) creaks and sparks as it begins to move. 02650_ System corrupted: Heat flow error (+272). 02660_ Scrap Shield destroyed. 02664_ Acquired Scrap Shield. 02668_ Scrap Shield destroyed. 02668_ Released Battle Cannon. 02668_ Released Ion Engine. 02668_ Released Battle Cannon. 02668_ Released Lgt. Treads. 02668_ Released Spk. Treads. Map ----- +----------------------------------------------------+ | ####""""#???????????## #??????????????? | | "#####"#??########## ##??????????????? | | "# " "##""##?# ## ##???????????????? | | " ###"## #????????????????? | | " "##"""" #????????????????? | | " # # "# ""##""##### ### ##???????????????? | | " ###### ## ""???## "##?# ##??????????????? | | ##??### # " #???#"" ### ##?????????????? | | " ##??#" # "#"#####"" " #?????????????? | | < #??#" =%"#" "## " #?????????????? | | " ##?#" %% =* " < " #?????????????? | | #### %# & # ##?????????????? | | #?## [&### #"## ##??????????????? | | #??# !#?## ### #???????????????? | | #### #??# #??## ##??????????????? | | ### #??# #???## #??????????????? | | ### #?? ????# ##R##R #??????????????? | | #? #? ???###% R# ;# ##??????????????? | | #?# # ???# ; ; #??????????????? | | ##??##" ???# #??????????????? | | # #????#" " " ???#; #####????????????? | | #???#"""" ""???# #????????????? | | #????####<##???# #????????????? | | #????????#?????# #????????????? | | ??????????????# ; * #????????????? | | ## ?????????????## ;; @ =]] ;#????????????? | | ??# ?????????????##### = #???????????? | | ??? ?????????????????# ##???????????? | | ??? ##????????????????# #????????????? | | ??? ##?????????????????# #????????????? | | ???###??????????????????# ###### ###????????????? | | ????????????????????????###?????##??????????????? | | ????????????????????????????????????????????????? | | ????????????????????????????????????????????????? | | ????????????????????????????????????????????????? | | ????????????????????????????????????????????????? | | ????????????????????????????????????????????????? | | ????????????????????????????????????????????????? | | ????????????????????????????????????????????????? | | ????????????????????????????????????????????????? | | ????????????????????????????????????????????????? | | ????????????????????????????????????????????????? | | ????????????????????????????????????????????????? | | ????????????????????????????????????????????????? | | ????????????????????????????????????????????????? | | ????????????????????????????????????????????????? | | ????????????????????????????????????????????????? | | ????????????????????????????????????????????????? | | | | | +----------------------------------------------------+ Best States ------------- Heat Dissipation 25 Energy Generation 10 Energy Capacity 250 Matter Stores 300 Matter Capacity 300 Sight Range 16 Terrain Scan Range 16 Terrain Scan Density 10 Armor Coverage 800 Evasion (%) 50 Recoil Reduction 2 Item Schematics ----------------- None Robot Schematics ------------------ None Fabricated ------------ Nothing Alien Tech Used ----------------- None Achievements -------------- None Challenges ------------ None Game ------ Seed AerolevKineticTrident Manual? 0 Play Time 00:20:00 Cumulative 92.5 hours Start 2024.12.17 @ 03:49:56 End 2024.12.18 @ 07:27:40 Sessions 1 Manual Loads 0 Difficulty Rogue Special Mode None Game No. 63 Rogue 63 Adventurer 0 Explorer 0 Win Type - Total 1 Types 1/0/0/0/0/0/0/0/0 Lore% 24 Gallery% 47 Achievement% 45 Wizard Run 0 Options --------- Layout 2 ASCII 0 Keyboard 1 Movement Vi Keybinds 1 Fullscreen 1 Font 32/SmallcapsGlow Map View 50x44 Zoom Use 0% Tactical HUD 1 Map Filters NONE Filters NONE Steam 1 RUN: 9542d1f0-cf49-42a8-b66f-72055ab1aa2e